bitfinex-derivatives/quotes_BNBF0:USTF0_20260114
["timestamp","ask_amount","ask_price","bid_price","bid_amount"]
[1768396460297,0.75945212,933.69,932.47,1.6042383]
[1768396460498,0.75932208,933.68,932.47,1.6042383]
[1768396460794,0.75932208,933.67,932.47,1.6042383]
[1768396460991,0.75932208,933.66,932.47,1.6042383]
[1768396461197,0.75932208,933.65,932.47,1.6042383]
[1768396461393,0.75932208,933.64,932.47,1.6042383]
[1768396461595,0.75932208,933.63,932.47,1.6042383]
[1768396461800,0.75932208,933.62,932.47,1.6042383]
[1768396462098,0.75932208,933.61,932.47,1.6042383]
[1768396462296,0.75932208,933.6,932.47,1.6042383]
[1768396462500,0.75932208,933.59,932.47,1.6042383]
[1768396462799,0.75932208,933.58,932.47,1.6042383]
[1768396462999,0.75932208,933.57,932.47,1.6042383]
[1768396463200,0.75932208,933.56,932.47,1.6042383]
[1768396463499,0.75932208,933.55,932.46,1.6042383]
[1768396463696,0.75932208,933.54,932.46,1.6042383]
[1768396463896,0.75932208,933.53,932.46,1.6042383]
[1768396464096,0.75932208,933.52,932.46,1.6042383]
[1768396464298,0.75932208,933.51,932.46,1.6042383]
[1768396464496,0.75932208,933.5,932.46,1.6042383]
[1768396464699,0.75932208,933.49,932.46,1.6042383]
[1768396464897,0.75932208,933.48,932.46,1.6042383]
[1768396465098,0.75932208,933.47,932.46,1.6042383]
[1768396465400,0.75932208,933.46,932.46,1.6042383]
[1768396465696,0.75932208,933.45,932.46,1.6042383]
[1768396465896,0.75932208,933.44,932.46,1.6042383]
[1768396466101,0.75932208,933.43,932.46,1.6042383]
[1768396466396,0.75932208,933.42,932.46,1.6042383]
[1768396466600,1.116,933.78,932.46,1.6042383]
[1768396466900,0.7591861,933.77,932.46,1.6042383]
[1768396467096,0.7591861,933.76,932.46,1.6042383]
[1768396467300,0.7591861,933.75,932.46,1.6042383]
[1768396467499,0.7591861,933.74,932.46,1.6042383]
[1768396467800,0.7591861,933.73,932.46,1.6042383]
[1768396467998,0.7591861,933.72,932.46,1.6042383]
[1768396468201,0.7591861,933.71,932.37,1.79058418]
[1768396468397,0.7591861,933.7,932.37,1.79058418]
[1768396468598,0.7591861,933.69,932.37,0.18634588]
[1768396468801,0.7591861,933.68,932.37,0.18634588]
[1768396468998,0.7591861,933.67,932.37,0.18634588]
[1768396469202,0.7591861,933.66,932.37,0.18634588]
[1768396469501,0.7591861,933.65,932.37,0.18634588]
[1768396469697,0.7591861,933.64,932.37,0.18634588]
[1768396469998,0.7591861,933.63,932.37,0.18634588]
[1768396470199,0.7591861,933.62,932.37,0.18634588]
[1768396470397,0.7591861,933.61,932.37,0.18634588]
[1768396470698,0.7591861,933.6,932.37,0.18634588]
[1768396470900,0.7591861,933.59,932.37,0.18634588]
[1768396471100,0.7591861,933.58,932.37,0.18634588]
[1768396471299,0.7591861,933.57,932.37,0.18634588]
[1768396471500,0.7591861,933.56,932.37,0.18634588]
[1768396471797,0.7591861,933.55,932.37,0.18634588]
[1768396471998,0.7591861,933.54,932.37,0.18634588]
[1768396472197,1.116,933.78,932.37,0.18634588]
[1768396472198,0.7591861,933.53,932.37,0.18634588]
[1768396472401,0.7591861,933.52,932.37,0.18634588]
[1768396472598,0.7591861,933.51,932.37,0.18634588]
[1768396472798,0.7591861,933.5,932.37,0.18634588]
[1768396473098,0.7591861,933.49,932.37,0.18634588]
[1768396473298,0.7591861,933.48,932.37,0.18634588]
[1768396473498,0.7591861,933.47,932.37,0.18634588]
[1768396473797,0.7591861,933.46,932.37,0.18634588]
[1768396473998,0.7591861,933.45,932.37,0.18634588]
[1768396474297,0.7591861,933.44,932.37,0.18634588]
[1768396474497,0.7591861,933.43,932.37,0.18634588]
[1768396474701,0.7591861,933.42,932.37,0.18634588]
[1768396475000,0.7591861,933.41,932.37,0.18634588]
[1768396475302,0.7591861,933.4,932.37,0.18634588]
[1768396475502,0.7591861,933.39,932.37,0.18634588]
[1768396475702,0.7591861,933.38,932.37,0.18634588]
[1768396475999,0.7591861,933.37,932.37,0.18634588]
[1768396476199,0.7591861,933.36,932.37,0.18634588]
[1768396476400,0.7591861,933.35,932.37,0.18634588]
[1768396476600,0.7591861,933.34,932.37,0.18634588]
[1768396476902,0.7591861,933.33,932.37,0.18634588]
[1768396477098,1.116,933.78,932.37,0.18634588]
[1768396477099,0.7591861,933.32,932.37,0.18634588]
[1768396477403,0.7591861,933.31,932.37,0.18634588]
[1768396477599,0.7591861,933.3,932.37,0.18634588]
[1768396477800,0.18635686,934.45,932.37,0.18634588]
[1768396477998,0.75922134,934.44,932.37,0.18634588]
[1768396478301,0.75922134,934.43,932.37,0.18634588]
[1768396478501,0.75922134,934.42,932.37,0.18634588]
[1768396478700,0.75922134,934.41,932.37,0.18634588]
[1768396478998,0.75922134,934.4,932.37,0.18634588]
[1768396479201,0.75922134,934.39,932.37,0.18634588]
[1768396479402,0.75922134,934.38,932.37,0.18634588]
[1768396479604,0.75922134,934.37,932.37,0.18634588]
[1768396479803,0.75922134,934.36,932.37,0.18634588]
[1768396480005,0.75922134,934.35,932.37,0.18634588]
[1768396480303,0.18635686,934.45,932.37,0.18634588]
[1768396480304,0.75922134,934.34,932.37,1.79058418]
[1768396480501,0.75922134,934.33,932.37,1.79058418]
[1768396480801,0.75922134,934.32,932.37,1.79058418]
[1768396481002,0.75922134,934.31,932.37,1.79058418]
[1768396481201,0.75922134,934.3,932.38,1.6042383]
[1768396481402,0.75922134,934.29,932.38,1.6042383]
[1768396481605,0.75922134,934.28,932.38,1.6042383]
[1768396481905,0.75922134,934.27,932.38,1.6042383]
[1768396482201,0.75922134,934.26,932.4,1.6042383]
[1768396482404,0.75922134,934.25,932.4,1.6042383]
[1768396482602,0.75922134,934.24,932.4,1.6042383]
[1768396482803,0.75922134,934.23,932.4,1.6042383]
[1768396483103,0.75922134,934.22,932.4,1.6042383]
[1768396483406,0.75922134,934.21,932.41,1.6042383]
[1768396483611,0.75922134,934.2,932.41,1.6042383]
[1768396483805,0.999,934.27,932.41,1.6042383]
[1768396483806,0.75922134,934.19,932.41,1.6042383]
[1768396484001,0.999,934.27,932.41,1.6042383]
[1768396484002,0.75922134,934.18,932.41,1.6042383]
[1768396484304,0.75922134,934.17,932.43,1.6042383]
[1768396484505,0.75922134,934.16,932.43,1.6042383]
[1768396484701,0.75922134,934.15,932.43,1.6042383]
[1768396484905,0.75922134,934.14,932.43,1.6042383]
[1768396485107,0.75922134,934.13,932.43,1.6042383]
[1768396485309,0.75922134,934.12,932.43,1.6042383]
[1768396485502,0.75922134,934.11,932.43,1.6042383]
[1768396485704,0.75922134,934.1,932.43,1.6042383]
[1768396486006,0.75922134,934.09,932.43,1.6042383]
[1768396486204,0.75922134,934.08,932.46,1.6042383]
[1768396486506,0.75922134,934.07,932.46,1.6042383]
[1768396486808,0.75922134,934.06,932.46,1.6042383]
[1768396487003,0.75922134,934.05,932.46,1.6042383]
[1768396487205,0.75922134,934.04,932.47,1.6042383]
[1768396487403,0.75922134,934.03,932.47,1.6042383]
[1768396487603,0.75922134,934.02,932.47,1.6042383]
[1768396487804,0.75922134,934.01,932.47,1.6042383]
[1768396488008,0.75922134,934.0,932.47,1.6042383]
[1768396488204,0.75922134,933.99,932.47,1.6042383]
[1768396488407,0.75922134,933.98,932.47,1.6042383]
[1768396488603,0.75922134,933.97,932.47,1.6042383]
[1768396488806,0.75922134,933.96,932.47,1.6042383]
[1768396489006,0.75922134,933.95,932.47,1.6042383]
[1768396489207,0.75922134,933.94,932.47,1.6042383]
[1768396489405,0.75922134,933.93,932.47,1.6042383]
[1768396489609,0.75922134,933.92,932.47,1.6042383]
[1768396489806,0.75922134,933.91,932.47,1.6042383]
[1768396490107,0.75922134,933.9,932.47,1.6042383]
[1768396490305,0.75922134,933.89,932.48,1.6042383]
[1768396490506,0.75922134,933.88,932.48,1.6042383]
[1768396490809,0.75922134,933.87,932.48,1.6042383]
[1768396491009,0.75922134,933.86,932.48,1.6042383]
[1768396491206,0.75922134,933.85,932.48,1.6042383]
[1768396491404,0.75922134,933.84,932.48,1.6042383]
[1768396491606,0.75922134,933.83,932.48,1.6042383]
[1768396491807,0.75922134,933.82,932.48,1.6042383]
[1768396492010,0.75922134,933.81,932.48,1.6042383]
[1768396492205,0.75922134,933.8,932.48,1.6042383]
[1768396492506,0.75922134,933.79,932.48,1.6042383]
[1768396492707,0.75922134,933.78,932.48,1.6042383]
[1768396492909,0.75922134,933.77,932.48,1.6042383]
[1768396493108,0.75922134,933.76,932.48,1.6042383]
[1768396493409,0.75922134,933.75,932.49,1.6042383]
[1768396493706,0.75922134,933.74,932.49,1.6042383]
[1768396493906,0.75922134,933.73,932.49,1.6042383]
[1768396494109,0.75922134,933.72,932.49,1.6042383]
[1768396494307,0.75922134,933.71,932.49,1.6042383]
[1768396494512,0.75922134,933.7,932.49,1.6042383]
[1768396494807,0.75922134,933.69,932.49,1.6042383]
[1768396495010,0.75922134,933.68,932.49,1.6042383]
[1768396495211,0.75922134,933.67,932.49,1.6042383]
[1768396495507,0.75922134,933.66,932.49,1.6042383]
[1768396495809,0.75922134,933.65,932.49,1.6042383]
[1768396496011,0.75922134,933.64,932.49,1.6042383]
[1768396496311,0.7614234,933.63,932.49,1.6042383]
[1768396496511,0.7614234,933.62,932.49,1.6042383]
[1768396496712,0.7614234,933.61,932.49,1.6042383]
[1768396496912,0.7614234,933.6,932.49,1.6042383]
[1768396497112,0.7614234,933.59,932.5,1.6042383]
[1768396497412,0.7614234,933.58,932.53,1.6042383]
[1768396497608,0.7614234,933.57,932.53,1.6042383]
[1768396497909,0.7614234,933.56,932.59,1.6042383]
[1768396498110,0.7614234,933.55,932.66,1.6042383]
[1768396498312,0.7614234,933.54,932.66,1.6042383]
[1768396498514,0.7614234,933.53,932.66,1.6042383]
[1768396498809,0.7614234,933.52,932.66,1.6042383]
[1768396499010,0.7614234,933.51,932.66,1.6042383]
[1768396499212,0.7614234,933.5,932.65,1.6042383]
[1768396499512,0.7614234,933.49,932.65,1.6042383]
[1768396499815,0.7614234,933.48,932.65,1.6042383]
[1768396500110,0.7614234,933.47,932.65,1.6042383]
[1768396500314,0.7614234,933.46,932.65,1.6042383]
[1768396500515,0.7614234,933.45,932.65,1.6042383]
[1768396500711,0.7614234,933.44,932.65,1.6042383]
[1768396501009,0.7614234,933.43,932.65,1.6042383]
[1768396501215,0.7614234,933.42,932.65,1.6042383]
[1768396501413,0.7614234,933.41,932.65,1.6042383]
[1768396501613,0.7614234,933.4,932.65,1.6042383]
[1768396501813,0.7614234,933.39,932.65,1.6042383]
[1768396502111,0.7614234,933.38,932.65,1.6042383]
[1768396502310,0.999,934.27,932.65,1.6042383]
[1768396502311,0.7614234,933.37,932.65,1.6042383]
[1768396502510,0.999,934.27,932.65,1.6042383]
[1768396502511,0.7614234,933.36,932.65,1.6042383]
[1768396502710,0.7614234,933.35,932.65,1.6042383]
[1768396503010,0.7614234,933.34,932.65,1.6042383]
[1768396503213,0.7614234,933.33,932.65,1.6042383]
[1768396503509,1.00885095,934.27,932.65,1.6042383]
[1768396503710,0.76166628,934.26,932.65,1.6042383]
[1768396504014,0.76166628,934.25,932.65,1.6042383]
[1768396504215,0.76166628,934.24,932.65,1.6042383]
[1768396504411,0.76166628,934.23,932.65,1.6042383]
[1768396504611,0.76166628,934.22,932.65,1.6042383]
[1768396504811,0.76166628,934.21,932.65,1.6042383]
[1768396505011,0.76166628,934.2,932.65,1.6042383]
[1768396505212,0.76166628,934.19,932.65,1.6042383]
[1768396505414,0.76166628,934.18,932.65,1.6042383]
[1768396505712,0.76166628,934.17,932.65,1.6042383]
[1768396505910,0.76166628,934.16,932.65,1.6042383]
[1768396506116,0.76166628,934.15,932.65,1.6042383]
[1768396506315,0.76166628,934.14,932.65,1.6042383]
[1768396506514,0.76166628,934.13,932.65,1.6042383]
[1768396506715,0.76166628,934.12,932.65,1.6042383]
[1768396507011,0.76166628,934.11,932.65,1.6042383]
[1768396507212,0.76166628,934.1,932.65,1.6042383]
[1768396507415,0.76166628,934.09,932.65,1.6042383]
[1768396507616,0.76166628,934.08,932.65,1.6042383]
[1768396507911,0.76166628,934.07,932.66,1.6042383]
[1768396508115,0.76166628,934.06,932.66,1.6042383]
[1768396508315,0.76166628,934.05,932.65,1.6042383]
[1768396508515,0.76166628,934.04,932.65,1.6042383]
[1768396508713,0.76166628,934.03,932.65,1.6042383]
[1768396509016,0.76166628,934.02,932.65,1.6042383]
[1768396509213,0.76166628,934.01,932.65,1.6042383]
[1768396509415,0.76166628,934.0,932.65,1.6042383]
[1768396509616,0.76166628,933.99,932.65,1.6042383]
[1768396509814,0.76166628,933.98,932.65,1.6042383]
[1768396510012,0.76166628,933.97,932.65,1.6042383]
[1768396510210,0.76166628,933.96,932.65,1.6042383]
[1768396510412,0.76166628,933.95,932.65,1.6042383]
[1768396510612,0.76151394,933.94,932.65,1.6042383]
[1768396510915,0.76151394,933.93,932.65,1.6042383]
[1768396511116,0.76151394,933.92,932.65,1.6042383]
[1768396511313,0.76151394,933.91,932.65,1.6042383]
[1768396511616,0.76151394,933.9,932.65,1.6042383]
[1768396511816,0.76151394,933.89,932.65,1.6042383]
[1768396512013,0.76151394,933.88,932.65,1.6042383]
[1768396512213,0.76151394,933.87,932.65,1.6042383]
[1768396512413,0.76151394,933.86,932.64,1.6042383]
[1768396512618,0.76151394,933.85,932.64,1.6042383]
[1768396512917,0.76151394,933.84,932.64,1.6042383]
[1768396513115,0.76151394,933.83,932.64,1.6042383]
[1768396513316,0.76151394,933.82,932.64,1.6042383]
[1768396513512,0.76151394,933.81,932.64,1.6042383]
[1768396513717,0.76151394,933.8,932.64,1.6042383]
[1768396513918,0.76151394,933.79,932.64,1.6042383]
[1768396514218,0.76151394,933.78,932.64,1.6042383]
[1768396514412,0.76151394,933.77,932.64,1.6042383]
[1768396514617,0.76151394,933.76,932.64,1.6042383]
[1768396514814,0.76151394,933.75,932.64,1.6042383]
[1768396515019,0.76151394,933.74,932.64,1.6042383]
[1768396515217,0.76151394,933.73,932.64,1.6042383]
[1768396515416,0.76151394,933.72,932.64,1.6042383]
[1768396515716,0.76151394,933.71,932.64,1.6042383]
[1768396515915,0.76151394,933.7,932.64,1.6042383]
[1768396516116,0.76151394,933.69,932.64,1.6042383]
[1768396516316,0.76151394,933.68,932.64,1.6042383]
[1768396516620,0.76151394,933.67,932.64,1.6042383]
[1768396516821,0.76151394,933.66,932.64,1.6042383]
[1768396517120,0.76151394,933.65,932.64,1.6042383]
[1768396517317,0.76151394,933.64,932.64,1.6042383]
[1768396517519,0.76151394,933.63,932.64,1.6042383]
[1768396517720,0.999,934.27,932.64,1.6042383]
[1768396517721,0.76151394,933.62,932.64,1.6042383]
[1768396518020,0.76151394,933.61,932.64,1.6042383]
[1768396518215,0.76151394,933.6,932.64,1.6042383]
[1768396518419,0.76151394,933.59,932.64,1.6042383]
[1768396518719,0.76151394,933.58,932.64,1.6042383]
[1768396518917,0.76151394,933.57,932.64,1.6042383]
[1768396519117,0.76151394,933.56,932.64,1.6042383]
[1768396519318,0.76151394,933.55,932.64,1.6042383]
[1768396519522,0.76151394,933.54,932.64,1.6042383]
[1768396519724,0.76151394,933.53,932.64,1.6042383]
[1768396519919,0.76151394,933.52,932.64,1.6042383]
[1768396520121,0.76151394,933.51,932.64,1.6042383]
[1768396520318,0.76151394,933.5,932.64,1.6042383]
[1768396520524,0.76151394,933.49,932.64,1.6042383]
[1768396520822,0.76151394,933.48,932.64,1.6042383]
[1768396521022,0.76151394,933.47,932.64,1.6042383]
[1768396521322,0.76151394,933.46,932.64,1.6042383]
[1768396521517,0.999,934.27,932.64,1.6042383]
[1768396521518,0.76151394,933.45,932.64,1.6042383]
[1768396521718,0.76151394,933.44,932.65,1.6042383]
[1768396521919,0.76151394,933.43,932.65,1.6042383]
[1768396522119,0.76151394,933.42,932.65,1.6042383]
[1768396522317,0.76151394,933.41,932.65,1.6042383]
[1768396522522,0.76151394,933.4,932.65,1.6042383]
[1768396522724,0.76151394,933.39,932.65,1.6042383]
[1768396523025,0.999,934.27,932.65,1.6042383]
[1768396523026,0.76151394,933.38,932.65,1.6042383]
[1768396523227,0.999,934.27,932.65,1.6042383]
[1768396523425,0.76111083,934.26,932.65,1.6042383]
[1768396523620,0.76111083,934.25,932.65,1.6042383]
[1768396523822,0.76111083,934.24,932.65,1.6042383]
[1768396524022,0.76111083,934.23,932.65,1.6042383]
[1768396524224,0.76111083,934.22,932.65,1.6042383]
[1768396524420,0.76111083,934.21,932.65,1.6042383]
[1768396524626,0.76111083,934.2,932.65,1.6042383]
[1768396524823,0.76111083,934.19,932.65,1.6042383]
[1768396525023,0.76111083,934.18,932.65,1.6042383]
[1768396525227,0.76111083,934.17,932.65,1.6042383]
[1768396525427,0.76111083,934.16,932.65,1.6042383]
[1768396525628,0.76111083,934.15,932.65,1.6042383]
[1768396525828,0.76111083,934.14,932.65,1.6042383]
[1768396526124,0.76111083,934.13,932.65,1.6042383]
[1768396526324,0.76111083,934.12,932.65,1.6042383]
[1768396526528,0.76111083,934.11,932.65,1.6042383]
[1768396526824,0.76111083,934.1,932.65,1.6042383]
[1768396527024,0.76111083,934.09,932.65,1.6042383]
[1768396527326,0.76111083,934.08,932.66,1.6042383]
[1768396527524,0.76111083,934.07,932.65,1.6042383]
[1768396527724,0.76111083,934.06,932.65,1.6042383]
[1768396527924,0.76111083,934.05,932.65,1.6042383]
[1768396528129,0.76111083,934.04,932.66,1.6042383]
[1768396528328,0.76111083,934.03,932.66,1.6042383]
[1768396528626,0.76111083,934.02,932.66,1.6042383]
[1768396528829,0.76111083,934.01,932.66,1.6042383]
[1768396529026,0.76111083,934.0,932.66,1.6042383]
[1768396529225,0.76111083,933.99,932.66,1.6042383]
[1768396529528,0.76111083,933.98,932.66,1.6042383]
[1768396529725,0.76111083,933.97,932.66,1.6042383]
[1768396530029,0.76111083,933.96,932.66,1.6042383]
[1768396530226,0.76111083,933.95,932.66,1.6042383]
[1768396530429,0.76111083,933.94,932.66,1.6042383]
[1768396530725,0.76111083,933.93,932.66,1.6042383]
[1768396531029,1.182,934.09,932.66,1.6042383]
[1768396531030,0.76111083,933.92,932.66,1.6042383]
[1768396531229,0.76111083,933.91,932.66,1.6042383]
[1768396531530,0.76111083,933.9,932.66,1.6042383]
[1768396531830,0.76111083,933.89,932.66,1.6042383]
[1768396532127,0.76111083,933.88,932.66,1.6042383]
[1768396532326,0.76111083,933.87,932.67,1.6042383]
[1768396532526,0.76111083,933.86,932.67,1.6042383]
[1768396532726,0.76111083,933.85,932.67,1.6042383]
[1768396532924,0.76111083,933.84,932.67,1.6042383]
[1768396533126,0.76111083,933.83,932.67,1.6042383]
[1768396533425,0.76111083,933.82,932.67,1.6042383]
[1768396533630,0.76111083,933.81,932.67,1.6042383]
[1768396533927,0.76111083,933.8,932.67,1.6042383]
[1768396534128,0.76111083,933.79,932.67,1.6042383]
[1768396534330,0.76111083,933.78,932.67,1.6042383]
[1768396534530,0.76111083,933.77,932.67,1.6042383]
[1768396534730,0.76111083,933.76,932.67,1.6042383]
[1768396534925,0.76135471,933.75,932.67,1.6042383]
[1768396535130,0.76135471,933.74,932.67,1.6042383]
[1768396535327,0.76135471,933.73,932.68,1.6042383]
[1768396535529,0.76135471,933.72,932.68,1.6042383]
[1768396535729,0.76135471,933.71,932.68,1.6042383]
[1768396536028,0.76135471,933.7,932.68,1.6042383]
[1768396536231,0.76135471,933.69,932.68,1.6042383]
[1768396536534,0.76135471,933.68,932.68,1.6042383]
[1768396536730,0.76135471,933.67,932.68,1.6042383]
[1768396537028,0.76135471,933.66,932.68,1.6042383]
[1768396537231,0.76135471,933.65,932.69,1.6042383]
[1768396537431,0.76135471,933.64,932.69,1.6042383]
[1768396537633,0.76135471,933.63,932.69,1.6042383]
[1768396537836,0.76135471,933.62,932.69,1.6042383]
[1768396538033,0.76135471,933.61,932.69,1.6042383]
[1768396538330,0.76135471,933.6,932.69,1.6042383]
[1768396538531,0.18638231,934.08,932.69,1.6042383]
[1768396538532,0.76135471,933.59,932.69,1.6042383]
[1768396538732,0.76135471,933.58,932.69,1.6042383]
[1768396538934,0.76135471,933.57,932.69,1.6042383]
[1768396539230,0.76135471,933.56,932.7,1.6042383]
[1768396539435,0.76135471,933.55,932.7,1.6042383]
[1768396539637,0.76135471,933.54,932.7,1.6042383]
[1768396539838,0.76135471,933.53,932.7,1.6042383]
[1768396540036,0.76135471,933.52,932.7,1.6042383]
[1768396540234,0.76135471,933.51,932.71,1.6042383]
[1768396540437,0.76135471,933.5,932.71,1.6042383]
[1768396540634,0.76135471,933.49,932.71,1.6042383]
[1768396540937,0.18638231,934.08,932.71,1.6042383]
[1768396540938,0.76135471,933.48,932.71,1.6042383]
[1768396541238,0.76135471,933.47,932.73,1.6042383]
[1768396541436,0.76135471,933.46,932.73,1.6042383]
[1768396541631,0.76135471,933.45,932.73,1.6042383]
[1768396541837,0.76135471,933.44,932.73,1.6042383]
[1768396542032,0.76135471,933.43,932.73,1.6042383]
[1768396542236,0.76135471,933.42,932.75,1.6042383]
[1768396542437,0.76135471,933.41,932.75,1.6042383]
[1768396542734,0.76135471,933.4,932.75,1.6042383]
[1768396542936,0.76135471,933.39,932.75,1.6042383]
[1768396543134,0.76135471,933.38,932.75,1.6042383]
[1768396543337,0.76135471,933.37,932.75,1.6042383]
[1768396543633,0.76135471,933.36,932.75,1.6042383]
[1768396543836,0.76135471,933.35,932.75,1.6042383]
[1768396544035,0.76135471,933.34,932.75,1.6042383]
[1768396544233,0.76135471,933.33,932.75,1.6042383]
[1768396544534,0.76135471,933.32,932.75,1.6042383]
[1768396544731,0.76135471,933.31,932.75,1.6042383]
[1768396544933,0.18638231,934.08,932.75,1.6042383]
[1768396544934,0.76135471,933.3,932.75,1.6042383]
[1768396545132,0.76135471,933.29,932.75,1.6042383]
[1768396545337,0.76135471,933.28,932.75,1.6042383]
[1768396545538,0.18638231,934.08,932.75,1.6042383]
[1768396545734,0.76336682,934.07,932.75,1.6042383]
[1768396545940,0.76336682,934.06,932.75,1.6042383]
[1768396546136,0.76336682,934.05,932.75,1.6042383]
[1768396546340,0.76336682,934.04,932.75,1.6042383]
[1768396546540,0.76336682,934.03,932.75,1.6042383]
[1768396546740,0.76336682,934.02,932.75,1.6042383]
[1768396546941,0.76336682,934.01,932.75,1.6042383]
[1768396547140,0.76336682,934.0,932.75,1.6042383]
[1768396547437,0.76348132,933.99,932.75,1.6042383]
[1768396547640,0.76348132,933.98,932.75,1.6042383]
[1768396547841,0.76348132,933.97,932.75,1.6042383]
[1768396548038,0.76348132,933.96,932.75,1.6042383]
[1768396548242,0.76348132,933.95,932.75,1.6042383]
[1768396548442,0.76348132,933.94,932.75,1.6042383]
[1768396548642,0.76348132,933.93,932.75,1.6042383]
[1768396548841,0.76348132,933.92,932.75,1.6042383]
[1768396549042,0.76348132,933.91,932.75,1.6042383]
[1768396549343,0.76348132,933.9,932.75,1.6042383]
[1768396549540,0.76348132,933.89,932.75,1.6042383]
[1768396549740,0.76348132,933.88,932.75,1.6042383]
[1768396549940,0.76348132,933.87,932.75,1.6042383]
[1768396550144,0.76348132,933.86,932.75,1.6042383]
[1768396550346,0.76348132,933.85,932.75,1.6042383]
[1768396550646,0.76348132,933.84,932.75,1.6042383]
[1768396550847,0.76348132,933.83,932.75,1.6042383]
[1768396551045,0.76348132,933.82,932.75,1.6042383]
[1768396551343,0.76348132,933.81,932.75,1.6042383]
[1768396551545,0.18638231,934.08,932.75,1.6042383]
[1768396551546,0.76348132,933.8,932.75,1.6042383]
[1768396551742,0.76348132,933.79,932.75,1.6042383]
[1768396551942,0.76348132,933.78,932.75,1.6042383]
[1768396552147,0.76348132,933.77,932.74,1.6042383]
[1768396552344,0.18638231,934.08,932.74,1.6042383]
[1768396552345,0.76348132,933.76,932.74,1.6042383]
[1768396552648,0.76348132,933.75,932.74,1.6042383]
[1768396552847,0.76348132,933.74,932.74,1.6042383]
[1768396553147,0.76348132,933.73,932.74,1.6042383]
[1768396553344,0.76348132,933.72,932.74,1.6042383]
[1768396553544,0.76348132,933.71,932.74,1.6042383]
[1768396553749,0.76348132,933.7,932.74,1.6042383]
[1768396553946,0.76348132,933.69,932.74,1.6042383]
[1768396554146,0.76348132,933.68,932.74,1.6042383]
[1768396554346,0.76348132,933.67,932.74,1.6042383]
[1768396554543,0.76348132,933.66,932.74,1.6042383]
[1768396554747,0.76348132,933.65,932.74,1.6042383]
[1768396555046,0.76348132,933.64,932.74,1.6042383]
[1768396555242,0.76348132,933.63,932.74,1.6042383]
[1768396555445,0.18638231,934.08,932.74,1.6042383]
[1768396555446,0.76348132,933.62,932.74,1.6042383]
[1768396555647,0.76348132,933.61,932.74,1.6042383]
[1768396555849,0.76348132,933.6,932.74,1.6042383]
[1768396556045,0.76348132,933.59,932.74,1.6042383]
[1768396556242,0.18638231,934.08,932.74,1.6042383]
[1768396556243,0.76348132,933.58,932.74,1.6042383]
[1768396556447,0.76348132,933.57,932.74,1.6042383]
[1768396556649,0.76348132,933.56,932.74,1.6042383]
[1768396556850,0.76348132,933.55,932.74,1.6042383]
[1768396557050,0.76348132,933.54,932.74,1.6042383]
[1768396557252,0.76348132,933.53,932.74,1.6042383]
[1768396557451,0.76348132,933.52,932.74,1.6042383]
[1768396557652,0.76348132,933.51,932.74,1.6042383]
[1768396557852,0.76348132,933.5,932.74,1.6042383]
[1768396558149,0.76348132,933.49,932.74,1.6042383]
[1768396558349,0.76348132,933.48,932.74,1.6042383]
[1768396558649,0.76348132,933.47,932.74,1.6042383]
[1768396558849,0.76348132,933.46,932.74,1.6042383]
[1768396559050,0.76348132,933.45,932.74,1.6042383]
[1768396559252,0.76348132,933.44,932.74,1.6042383]
[1768396559450,0.76348132,933.43,932.74,1.6042383]
[1768396559750,0.76348132,933.42,932.74,1.6042383]
[1768396559954,0.76348132,933.41,932.74,1.6042383]
[1768396560156,0.76348132,933.4,932.74,1.6042383]
[1768396560454,0.76348132,933.39,932.74,1.6042383]
[1768396560651,0.76348132,933.38,932.74,1.6042383]
[1768396560851,0.76348132,933.37,932.74,1.6042383]
[1768396561149,0.76348132,933.36,932.74,1.6042383]
[1768396561351,0.76348132,933.35,932.74,1.6042383]
[1768396561651,0.76348132,933.34,932.74,1.6042383]
[1768396561849,0.76348132,933.33,932.75,1.6042383]
[1768396562053,0.76348132,933.32,932.75,1.6042383]
[1768396562252,0.76348132,933.31,932.75,1.6042383]
[1768396562449,0.76348132,933.3,932.75,1.6042383]
[1768396562655,0.76348132,933.29,932.75,1.6042383]
[1768396562852,0.76348132,933.28,932.75,1.6042383]
[1768396563056,0.76348132,933.27,932.76,1.6042383]
[1768396563257,0.18638231,934.08,932.75,1.6042383]
[1768396563457,0.76352232,934.07,932.75,1.6042383]
[1768396563653,0.76352232,934.06,932.75,1.6042383]
[1768396563857,0.76352232,934.05,932.75,1.6042383]
[1768396564053,0.76352232,934.04,932.75,1.6042383]
[1768396564261,0.76352232,934.03,932.75,1.6042383]
[1768396564554,0.76352232,934.02,932.75,1.6042383]
[1768396564757,0.76352232,934.01,932.75,1.6042383]
[1768396564958,0.76352232,934.0,932.75,1.6042383]
[1768396565153,0.76352232,933.99,932.75,1.6042383]
[1768396565453,0.76352232,933.98,932.75,1.6042383]
[1768396565657,0.76352232,933.97,932.75,1.6042383]
[1768396565857,0.76352232,933.96,932.75,1.6042383]
[1768396566056,0.76352232,933.95,932.75,1.6042383]
[1768396566357,0.76352232,933.94,932.75,1.6042383]
[1768396566554,0.76352232,933.93,932.75,1.6042383]
[1768396566855,0.76352232,933.92,932.75,1.6042383]
[1768396567055,0.76352232,933.91,932.75,1.6042383]
[1768396567257,0.76352232,933.9,932.75,1.6042383]
[1768396567455,0.76352232,933.89,932.75,1.6042383]